fUSD/lending_fUSD_20240318
["ID","MTS","AMOUNT","RATE_DAILY","PERIOD"]
[319475304,1710799899102,-500.0,0.00023013,2]
[319475305,1710799899111,-500.0,0.00023013,2]
[319475306,1710799899120,-500.0,0.00023013,2]
[319475307,1710799899131,-500.0,0.00023013,2]
[319475308,1710799899141,-1089.38,0.00023013,2]
[319475309,1710799899150,-1225.65,0.00023013,2]
[319475310,1710799899160,-259.44376941,0.00023013,2]
[319475311,1710799899169,-2976.15,0.00023013,2]
[319475312,1710799899179,-705.19,0.00023013,2]
[319475313,1710799899188,-508.99,0.00023013,2]
[319475314,1710799899197,-500.0,0.00023013,2]
[319475315,1710799899207,-501.15,0.00023013,2]
[319475316,1710799899216,-1173.9,0.00023013,2]
[319475317,1710799899225,-500.0,0.00023013,2]
[319475318,1710799899235,-1787.1,0.00023013,2]
[319475319,1710799899244,-500.0,0.00023013,2]
[319475320,1710799899254,-500.0,0.00023013,2]
[319475321,1710799899264,-1969.89,0.00023013,2]
[319475322,1710799899273,-551.56,0.00023013,2]
[319475323,1710799899283,-500.0,0.00023013,2]
[319475324,1710799899293,-500.0,0.00023013,2]
[319475325,1710799899303,-634.39,0.00023013,2]
[319475326,1710799899313,-515.85,0.00023013,2]
[319475327,1710799899323,-155.8329736,0.00023013,2]
[319475328,1710799899334,-1763.14,0.00023013,2]
[319475329,1710799899343,-500.0,0.00023013,2]
[319475330,1710799899353,-1610.23,0.00023013,2]
[319475331,1710799899363,-500.0,0.00023013,2]
[319475332,1710799899373,-439.86726714,0.00023013,2]
[319475333,1710799899388,-698.44,0.00023013,2]
[319475334,1710799899397,-757.78,0.00023013,2]
[319475335,1710799899407,-500.0,0.00023013,2]
[319475336,1710799899418,-500.0,0.00023013,2]
[319475337,1710799899427,-500.0,0.00023013,2]
[319475338,1710799899437,-500.0,0.00023013,2]
[319475339,1710799899447,-3621.53,0.00023013,2]
[319475340,1710799899457,-500.0,0.00023013,2]
[319475341,1710799899467,-1107.01,0.00023013,2]
[319475342,1710799899477,-3272.98,0.00023013,2]
[319475343,1710799899487,-500.0,0.00023013,2]
[319475344,1710799899497,-500.0,0.00023013,2]
[319475345,1710799899507,-617.42,0.00023013,2]
[319475346,1710799899517,-500.0,0.00023013,2]
[319475347,1710799899527,-833.03,0.00023013,2]
[319475348,1710799899537,-1059.1,0.00023013,2]
[319475349,1710799899546,-500.0,0.00023013,2]
[319475350,1710799899556,-2995.13,0.00023013,2]
[319475351,1710799899567,-500.0,0.00023013,2]
[319475352,1710799899581,-500.0,0.00023013,2]
[319475353,1710799899590,-500.0,0.00023013,2]
[319475354,1710799899600,-1379.17,0.00023013,2]
[319475355,1710799899610,-500.0,0.00023013,2]
[319475356,1710799899621,-2205.14,0.00023013,2]
[319475357,1710799899634,-1296.97,0.00023013,2]
[319475358,1710799899644,-684.91,0.00023013,2]
[319475359,1710799899655,-500.0,0.00023013,2]
[319475360,1710799899665,-500.0,0.00023013,2]
[319475361,1710799899674,-500.0,0.00023013,2]
[319475362,1710799899684,-1167.23,0.00023013,2]
[319475363,1710799899693,-500.0,0.00023013,2]
[319475364,1710799899702,-1111.67,0.00023013,2]
[319475365,1710799899712,-500.0,0.00023013,2]
[319475366,1710799899721,-1840.74,0.00023013,2]
[319475367,1710799899731,-1159.15,0.00023013,2]
[319475368,1710799899740,-500.0,0.00023013,2]
[319475369,1710799899750,-500.0,0.00023013,2]
[319475370,1710799899760,-1071.26,0.00023013,2]
[319475371,1710799899770,-732.2,0.00023013,2]
[319475372,1710799899779,-2487.12,0.00023013,2]
[319475373,1710799899789,-500.0,0.00023013,2]
[319475374,1710799899798,-1409.81,0.00023013,2]
[319475375,1710799899808,-500.0,0.00023013,2]
[319475376,1710799899817,-2258.29,0.00023013,2]
[319475377,1710799899826,-500.0,0.00023013,2]
[319475378,1710799899836,-885.61,0.00023013,2]
[319475379,1710799899847,-500.0,0.00023013,2]
[319475380,1710799899857,-728.7,0.00023013,2]
[319475381,1710799899867,-500.0,0.00023013,2]
[319475382,1710799899879,-500.0,0.00023013,2]
[319475383,1710799899888,-981.29,0.00023013,2]
[319475384,1710799899898,-619.02,0.00023013,2]
[319475385,1710799899907,-3027.38,0.00023013,2]
[319475386,1710799899916,-500.0,0.00023013,2]
[319475387,1710799899926,-2230.77,0.00023013,2]
[319475388,1710799899935,-2148.85,0.00023013,2]
[319475389,1710799899944,-500.0,0.00023013,2]
[319475390,1710799899954,-847.31,0.00023013,2]
[319475391,1710799899963,-500.0,0.00023013,2]
[319475392,1710799899973,-500.0,0.00023013,2]
[319475393,1710799899983,-500.0,0.00023013,2]
[319475394,1710799899992,-500.0,0.00023013,2]
[319475395,1710799900001,-500.0,0.00023013,2]
[319475396,1710799900011,-1040.92,0.00023013,2]
[319475397,1710799900021,-1016.05,0.00023013,2]
[319475398,1710799900030,-625.78,0.00023013,2]
[319475399,1710799900040,-500.0,0.00023013,2]
[319475400,1710799900049,-500.0,0.00023013,2]
[319475401,1710799900059,-516.66754286,0.00023013,2]
[319475402,1710799900068,-1988.29,0.00023013,2]
[319475403,1710799900078,-673.87,0.00023013,2]
[319475404,1710799900087,-500.0,0.00023013,2]
[319475405,1710799900096,-803.43,0.00023013,2]
[319475406,1710799900106,-2712.0,0.00023013,2]
[319475407,1710799900115,-618.27,0.00023013,2]
[319475408,1710799900125,-925.33,0.00023013,2]
[319475409,1710799900136,-1492.36,0.00023013,2]
[319475410,1710799900146,-1934.24,0.00023013,2]
[319475411,1710799900155,-500.0,0.00023013,2]
[319475412,1710799900165,-1347.96,0.00023013,2]
[319475413,1710799900174,-500.0,0.00023013,2]
[319475414,1710799900184,-500.0,0.00023013,2]
[319475415,1710799900193,-618.35,0.00023013,2]
[319475416,1710799900203,-500.0,0.00023013,2]
[319475417,1710799900213,-500.0,0.00023013,2]
[319475418,1710799900223,-736.87,0.00023013,2]
[319475419,1710799900232,-3249.34,0.00023013,2]
[319475420,1710799900242,-500.0,0.00023013,2]
[319475421,1710799900251,-500.0,0.00023013,2]
[319475422,1710799900261,-1048.99,0.00023013,2]
[319475423,1710799900270,-500.0,0.00023013,2]
[319475424,1710799900279,-555.58,0.00023013,2]
[319475425,1710799900289,-2027.85,0.00023013,2]
[319475426,1710799900298,-695.99,0.00023013,2]
[319475427,1710799900307,-500.0,0.00023013,2]
[319475428,1710799900317,-500.0,0.00023013,2]
[319475429,1710799900327,-500.0,0.00023013,2]
[319475430,1710799900336,-1686.42,0.00023013,2]
[319475431,1710799900346,-500.0,0.00023013,2]
[319475432,1710799900356,-500.0,0.00023013,2]
[319475433,1710799900366,-500.0,0.00023013,2]
[319475434,1710799900375,-3300.65,0.00023013,2]
[319475435,1710799900388,-1879.8,0.00023013,2]
[319475436,1710799900398,-689.62,0.00023013,2]
[319475437,1710799900661,-600.13,0.00023013,2]
[319475438,1710799900670,-3602.93,0.00023013,2]
[319475439,1710799900680,-500.0,0.00023013,2]
[319475440,1710799900689,-500.0,0.00023013,2]
[319475441,1710799900698,-500.0,0.00023013,2]
[319475442,1710799900707,-500.0,0.00023013,2]
[319475443,1710799900715,-839.53,0.00023013,2]
[319475444,1710799900725,-734.91,0.00023013,2]
[319475445,1710799900734,-1753.56,0.00023013,2]
[319475446,1710799900743,-500.0,0.00023013,2]
[319475447,1710799900752,-839.74,0.00023013,2]
[319475448,1710799900761,-500.0,0.00023013,2]
[319475449,1710799900770,-500.0,0.00023013,2]
[319475450,1710799900779,-500.0,0.00023013,2]
[319475451,1710799900788,-4941.23,0.00023013,2]
[319475452,1710799900797,-500.0,0.00023013,2]
[319475453,1710799900807,-924.55,0.00023013,2]
[319475454,1710799900816,-646.58,0.00023013,2]
[319475455,1710799900825,-1444.11,0.00023013,2]
[319475456,1710799900834,-1862.07,0.00023013,2]
[319475457,1710799900844,-2596.77,0.00023013,2]
[319475458,1710799900853,-600.66,0.00023013,2]
[319475459,1710799900862,-1913.61,0.00023013,2]
[319475460,1710799900872,-1169.17,0.00023013,2]
[319475461,1710799900883,-501.0,0.00023013,2]
[319475462,1710799900893,-500.0,0.00023013,2]
[319475463,1710799900902,-500.0,0.00023013,2]
[319475464,1710799900911,-671.74,0.00023013,2]
[319475465,1710799900920,-500.0,0.00023013,2]
[319475466,1710799900929,-500.0,0.00023013,2]
[319475467,1710799900938,-500.0,0.00023013,2]
[319475468,1710799900947,-660.79,0.00023013,2]
[319475469,1710799900956,-500.0,0.00023013,2]
[319475470,1710799900966,-4429.56,0.00023013,2]
[319475471,1710799900975,-645.13,0.00023013,2]
[319475472,1710799900984,-1387.34,0.00023013,2]
[319475473,1710799900993,-500.0,0.00023013,2]
[319475474,1710799901002,-500.0,0.00023013,2]
[319475475,1710799901011,-1092.65,0.00023013,2]
[319475476,1710799901020,-1234.18,0.00023013,2]
[319475477,1710799901029,-775.21,0.00023013,2]
[319475478,1710799901039,-1640.92,0.00023013,2]
[319475479,1710799901048,-660.8,0.00023013,2]
[319475480,1710799901057,-520.66,0.00023013,2]
[319475481,1710799901066,-500.0,0.00023013,2]
[319475482,1710799901075,-618.02,0.00023013,2]
[319475483,1710799901084,-500.0,0.00023013,2]
[319475484,1710799901093,-500.0,0.00023013,2]
[319475485,1710799901102,-2991.4,0.00023013,2]
[319475486,1710799901111,-526.67,0.00023013,2]
[319475487,1710799901120,-500.0,0.00023013,2]
[319475488,1710799901129,-3432.69,0.00023013,2]
[319475489,1710799901138,-929.21,0.00023013,2]
[319475490,1710799901147,-500.0,0.00023013,2]
[319475491,1710799901156,-2512.6,0.00023013,2]
[319475492,1710799901166,-500.0,0.00023013,2]
[319475493,1710799901175,-553.17,0.00023013,2]
[319475494,1710799901184,-632.91,0.00023013,2]
[319475495,1710799901193,-500.0,0.00023013,2]
[319475496,1710799901202,-587.03,0.00023013,2]
[319475497,1710799901211,-500.0,0.00023013,2]
[319475498,1710799901220,-500.0,0.00023013,2]
[319475499,1710799901229,-503.03001711,0.00023013,2]
[319475500,1710799901239,-500.0,0.00023013,2]
[319475501,1710799901248,-1670.28,0.00023013,2]
[319475502,1710799901257,-778.13,0.00023013,2]
[319475503,1710799901266,-1508.72,0.00023013,2]
[319475504,1710799901275,-588.94,0.00023013,2]
[319475505,1710799901285,-500.0,0.00023013,2]
[319475506,1710799901294,-992.88,0.00023013,2]
[319475507,1710799901303,-2672.81,0.00023013,2]
[319475508,1710799901312,-1421.34,0.00023013,2]
[319475509,1710799901322,-305.94359174,0.00023013,2]
[319475510,1710799901332,-1479.34,0.00023013,2]
[319475511,1710799901341,-1591.7,0.00023013,2]
[319475512,1710799901351,-549.69,0.00023013,2]
[319475513,1710799901361,-500.0,0.00023013,2]
[319475514,1710799901370,-500.0,0.00023013,2]
[319475515,1710799901379,-1096.72,0.00023013,2]
[319475516,1710799901389,-319.77254842,0.00023013,2]
[319475517,1710799901399,-500.0,0.00023013,2]
[319475518,1710799901409,-2210.21,0.00023013,2]
[319475519,1710799901419,-1855.24,0.00023013,2]
[319475520,1710799901428,-869.7,0.00023013,2]
[319475521,1710799901438,-500.0,0.00023013,2]
[319475522,1710799901448,-1181.58,0.00023013,2]
[319475523,1710799901458,-1747.53,0.00023013,2]
[319475524,1710799901468,-680.92,0.00023013,2]
[319475525,1710799901477,-500.0,0.00023013,2]
[319475526,1710799901486,-417.585999,0.00023013,7]
[319475527,1710799901495,-417.585999,0.00023013,7]
[319475528,1710799901505,-665.42,0.00023013,2]
[319475529,1710799901514,-500.0,0.00023013,2]
[319475530,1710799901524,-500.0,0.00023013,2]
[319475531,1710799901533,-417.585999,0.00023013,7]
[319475532,1710799901543,-417.585999,0.00023013,7]
[319475533,1710799901552,-1501.92,0.00023013,2]
[319475534,1710799901562,-2323.42,0.00023013,2]
[319475535,1710799901572,-2355.45,0.00023013,2]
[319475536,1710799901584,-2348.13,0.00023013,2]
[319475537,1710799901593,-1841.43,0.00023013,2]
[319475538,1710799901603,-500.0,0.00023013,2]
[319475539,1710799901612,-500.0,0.00023013,2]
[319475540,1710799901622,-633.95,0.00023013,2]
[319475541,1710799901632,-2789.32,0.00023013,2]
[319475542,1710799901642,-1047.26,0.00023013,2]
[319475543,1710799901654,-500.0,0.00023013,2]
[319475544,1710799901664,-500.0,0.00023013,2]
[319475545,1710799901674,-500.0,0.00023013,2]
[319475546,1710799901683,-506.7,0.00023013,2]
[319475547,1710799901692,-500.0,0.00023013,2]
[319475548,1710799901701,-2028.96,0.00023013,2]
[319475549,1710799901710,-727.29,0.00023013,2]
[319475550,1710799901719,-500.0,0.00023013,2]
[319475551,1710799901728,-1121.74,0.00023013,2]
[319475552,1710799901738,-499.012743,0.00023013,7]
[319475553,1710799901748,-499.012743,0.00023013,7]
[319475554,1710799901757,-500.0,0.00023013,2]
[319475555,1710799901766,-500.0,0.00023013,2]
[319475556,1710799901775,-499.012743,0.00023013,7]
[319475557,1710799901784,-499.012743,0.00023013,7]
[319475558,1710799901793,-500.0,0.00023013,2]
[319475559,1710799901802,-1964.52,0.00023013,2]
[319475560,1710799901811,-800.57,0.00023013,2]
[319475561,1710799901821,-151.0,0.00023013,7]
[319475562,1710799901830,-151.0,0.00023013,7]
[319475563,1710799901839,-151.0,0.00023013,7]
[319475564,1710799901849,-855.83,0.00023013,2]
[319475565,1710799901858,-500.0,0.00023013,2]
[319475566,1710799901867,-500.0,0.00023013,2]
[319475567,1710799901876,-515.18,0.00023013,2]
[319475568,1710799901887,-151.0,0.00023013,7]
[319475569,1710799901896,-151.0,0.00023013,7]
[319475570,1710799901905,-805.44,0.00023013,2]
[319475571,1710799901914,-1465.25,0.00023013,2]
[319475572,1710799901923,-500.0,0.00023013,2]
[319475573,1710799901932,-1137.55,0.00023013,2]
[319475574,1710799901941,-703.59,0.00023013,2]
[319475575,1710799901950,-1372.51,0.00023013,2]
[319475576,1710799901959,-500.0,0.00023013,2]
[319475577,1710799901968,-1311.42,0.00023013,2]
[319475578,1710799901977,-693.23,0.00023013,2]
[319475579,1710799901986,-890.31,0.00023013,2]
[319475580,1710799901995,-606.63,0.00023013,2]
[319475581,1710799902003,-1355.8,0.00023013,2]
[319475582,1710799902013,-633.23,0.00023013,2]
[319475583,1710799902022,-500.0,0.00023013,2]
[319475584,1710799902031,-931.19,0.00023013,2]
[319475585,1710799902040,-1311.22,0.00023013,2]
[319475586,1710799902049,-500.0,0.00023013,2]
[319475587,1710799902058,-931.2,0.00023013,2]
[319475588,1710799902067,-500.0,0.00023013,2]
[319475589,1710799902076,-500.0,0.00023013,2]
[319475590,1710799902085,-560.88,0.00023013,2]
[319475591,1710799902094,-578.22,0.00023013,2]
[319475592,1710799902103,-1373.23,0.00023013,2]
[319475593,1710799902112,-413.37679156,0.00023013,2]
[319475594,1710799902121,-1189.08,0.00023013,2]
[319475595,1710799902130,-582.88,0.00023013,2]
[319475596,1710799902139,-500.0,0.00023013,2]
[319475597,1710799902148,-807.67,0.00023013,2]
[319475598,1710799902157,-500.0,0.00023013,2]
[319475599,1710799902166,-500.0,0.00023013,2]
[319475600,1710799902175,-500.0,0.00023013,2]
[319475601,1710799902185,-500.0,0.00023013,2]
[319475602,1710799902194,-1318.07,0.00023013,2]
[319475603,1710799902203,-667.48,0.00023013,2]
[319475604,1710799902212,-2537.59,0.00023013,2]
[319475605,1710799902221,-1833.13,0.00023013,2]
[319475606,1710799902230,-500.0,0.00023013,2]
[319475607,1710799902239,-500.0,0.00023013,2]
[319475608,1710799902248,-584.63,0.00023013,2]
[319475609,1710799902257,-922.71,0.00023013,2]
[319475610,1710799902266,-522.08,0.00023013,2]
[319475611,1710799902275,-1186.68,0.00023013,2]
[319475612,1710799902285,-500.0,0.00023013,2]
[319475613,1710799902294,-500.0,0.00023013,2]
[319475614,1710799902303,-797.09,0.00023013,2]
[319475615,1710799902312,-1847.99,0.00023013,2]
[319475616,1710799902321,-998.55,0.00023013,2]
[319475617,1710799902331,-500.0,0.00023013,2]
[319475618,1710799902340,-172.732054,0.00023013,7]
[319475619,1710799902350,-500.0,0.00023013,2]
[319475620,1710799902360,-172.732054,0.00023013,7]
[319475621,1710799902370,-500.0,0.00023013,2]
[319475622,1710799902380,-500.0,0.00023013,2]
[319475623,1710799902390,-500.0,0.00023013,2]
[319475624,1710799902400,-172.732054,0.00023013,7]
[319475625,1710799902410,-172.732054,0.00023013,7]
[319475626,1710799902419,-1079.26,0.00023013,2]
[319475627,1710799902428,-1856.02,0.00023013,2]
[319475628,1710799902437,-1418.3,0.00023013,2]
[319475629,1710799902447,-1186.25,0.00023013,2]
[319475630,1710799902456,-897.94,0.00023013,2]
[319475631,1710799902466,-844.5,0.00023013,2]
[319475632,1710799902475,-454.65848688,0.00023013,2]
[319475633,1710799902484,-500.0,0.00023013,2]
[319475634,1710799902494,-500.0,0.00023013,2]
[319475635,1710799902503,-1228.33,0.00023013,2]
[319475636,1710799902513,-656.86,0.00023013,2]
[319475637,1710799902522,-151.0,0.00023013,7]
[319475638,1710799902532,-1254.05,0.00023013,2]
[319475639,1710799902541,-151.0,0.00023013,7]
[319475640,1710799902551,-1220.28,0.00023013,2]
[319475641,1710799902560,-151.0,0.00023013,7]
[319475642,1710799902571,-500.0,0.00023013,2]
[319475643,1710799902583,-524.26,0.00023013,2]
[319475644,1710799902593,-544.86,0.00023013,2]
[319475645,1710799902602,-1112.38,0.00023013,2]
[319475646,1710799902612,-1554.62,0.00023013,2]
[319475647,1710799902623,-1046.24,0.00023013,2]
[319475648,1710799902636,-500.0,0.00023013,2]
[319475649,1710799902645,-990.25,0.00023013,2]
[319475650,1710799902656,-319.07907279,0.00023013,2]
[319475651,1710799902666,-500.0,0.00023013,2]
[319475652,1710799902676,-525.88,0.00023013,2]
[319475653,1710799902685,-615.98,0.00023013,2]
[319475654,1710799902695,-1017.43,0.00023013,2]
[319475655,1710799902705,-500.0,0.00023013,2]
[319475656,1710799902714,-500.0,0.00023013,2]
[319475657,1710799902723,-1155.33,0.00023013,2]
[319475658,1710799902733,-3244.32,0.00023013,2]
[319475659,1710799902742,-527.83,0.00023013,2]
[319475660,1710799902751,-500.0,0.00023013,2]
[319475661,1710799902761,-1754.86,0.00023013,2]
[319475662,1710799902770,-1859.5,0.00023013,2]
[319475663,1710799902781,-721.17,0.00023013,2]
[319475664,1710799902790,-1204.75,0.00023013,2]
[319475665,1710799902800,-1304.47,0.00023013,2]
[319475666,1710799902809,-500.0,0.00023013,2]
[319475667,1710799902818,-1387.32,0.00023013,2]
[319475668,1710799902829,-1084.75,0.00023013,2]
[319475669,1710799902838,-984.35,0.00023013,2]
[319475670,1710799902847,-500.0,0.00023013,2]
[319475671,1710799902857,-500.0,0.00023013,2]
[319475672,1710799902867,-500.0,0.00023013,2]
[319475673,1710799902876,-349.92574461,0.00023013,2]
[319475674,1710799902890,-500.0,0.00023013,2]
[319475675,1710799902902,-500.0,0.00023013,2]
[319475676,1710799902911,-1042.11,0.00023013,2]
[319475677,1710799902920,-550.03,0.00023013,2]
[319475678,1710799902929,-500.0,0.00023013,2]
[319475679,1710799902939,-500.0,0.00023013,2]
[319475680,1710799902948,-500.0,0.00023013,2]
[319475681,1710799902956,-3263.23,0.00023013,2]
[319475682,1710799902966,-1980.05,0.00023013,2]
[319475683,1710799902975,-1006.81,0.00023013,2]
[319475684,1710799902984,-1334.24,0.00023013,2]
[319475685,1710799902993,-500.0,0.00023013,2]
[319475686,1710799903002,-500.0,0.00023013,2]
[319475687,1710799903011,-879.01,0.00023013,2]
[319475688,1710799903020,-500.0,0.00023013,2]
[319475689,1710799903029,-772.45,0.00023013,2]
[319475690,1710799903038,-577.06,0.00023013,2]
[319475691,1710799903047,-1289.15,0.00023013,2]
[319475692,1710799903057,-500.0,0.00023013,2]
[319475693,1710799903066,-500.0,0.00023013,2]
[319475694,1710799903075,-500.0,0.00023013,2]
[319475695,1710799903085,-1162.86,0.00023013,2]
[319475696,1710799903094,-500.0,0.00023013,2]
[319475697,1710799903106,-539.59,0.00023013,2]
[319475698,1710799903120,-500.0,0.00023013,2]
[319475699,1710799903134,-1284.59,0.00023013,2]
[319475700,1710799903146,-1343.86,0.00023013,2]
[319475701,1710799903160,-2423.47,0.00023013,2]
[319475702,1710799903173,-500.0,0.00023013,2]
[319475703,1710799903188,-790.0,0.00023013,2]
[319475704,1710799903202,-1561.78,0.00023013,2]
[319475705,1710799903213,-2345.93,0.00023013,2]
[319475706,1710799903226,-1543.03,0.00023013,2]
[319475707,1710799903239,-500.0,0.00023013,2]
[319475708,1710799903252,-688.89,0.00023013,2]
[319475709,1710799903266,-500.0,0.00023013,2]
[319475710,1710799903277,-500.0,0.00023013,2]
[319475711,1710799903291,-1604.71,0.00023013,2]
[319475712,1710799903303,-500.0,0.00023013,2]
[319475713,1710799903318,-500.0,0.00023013,2]
[319475714,1710799903331,-779.42,0.00023013,2]
[319475715,1710799903343,-500.0,0.00023013,2]
[319475716,1710799903357,-500.0,0.00023013,2]
[319475717,1710799903371,-1455.91,0.00023013,2]
[319475718,1710799903388,-964.51,0.00023013,2]
[319475719,1710799903402,-500.0,0.00023013,2]
[319475720,1710799903415,-865.84,0.00023013,2]
[319475721,1710799903425,-454.58465188,0.00023013,2]
[319475722,1710799903436,-500.0,0.00023013,2]
[319475723,1710799903450,-500.0,0.00023013,2]
[319475724,1710799903463,-1883.82,0.00023013,2]
[319475725,1710799903475,-1347.47,0.00023013,2]
[319475726,1710799903489,-500.0,0.00023013,2]
[319475727,1710799903502,-615.15,0.00023013,2]
[319475728,1710799903513,-500.0,0.00023013,2]
[319475729,1710799903528,-500.0,0.00023013,2]
[319475730,1710799903540,-500.0,0.00023013,2]
[319475731,1710799903552,-743.05,0.00023013,2]
[319475732,1710799903564,-500.0,0.00023013,2]
[319475733,1710799903580,-1288.43,0.00023013,2]
[319475734,1710799903592,-1050.86,0.00023013,2]
[319475735,1710799903605,-532.05,0.00023013,2]
[319475736,1710799903619,-568.35,0.00023013,2]
[319475737,1710799903633,-500.0,0.00023013,2]
[319475738,1710799903645,-500.0,0.00023013,2]
[319475739,1710799903658,-500.0,0.00023013,2]
[319475740,1710799903671,-500.0,0.00023013,2]
[319475741,1710799903683,-500.0,0.00023013,2]
[319475742,1710799903695,-500.0,0.00023013,2]
[319475743,1710799903707,-801.95,0.00023013,2]
[319475744,1710799903718,-500.0,0.00023013,2]
[319475745,1710799903730,-3692.13,0.00023013,2]
[319475746,1710799903741,-1387.79,0.00023013,2]
[319475747,1710799903753,-1021.88,0.00023013,2]
[319475748,1710799903765,-500.0,0.00023013,2]
[319475749,1710799903777,-533.93783942,0.00023013,2]
[319475750,1710799903789,-1736.34,0.00023013,2]
[319475751,1710799903801,-500.0,0.00023013,2]
[319475752,1710799903813,-2682.4,0.00023013,2]
[319475753,1710799903825,-722.05,0.00023013,2]
[319475754,1710799903837,-500.0,0.00023013,2]
[319475755,1710799903849,-917.72,0.00023013,2]
[319475756,1710799903860,-1582.16,0.00023013,2]
[319475757,1710799903872,-538.67251764,0.00023013,2]
[319475758,1710799903883,-500.0,0.00023013,2]
[319475759,1710799903897,-500.0,0.00023013,2]
[319475760,1710799903908,-500.0,0.00023013,2]
[319475761,1710799903920,-500.0,0.00023013,2]
[319475762,1710799903932,-486.58729281,0.00023013,2]
[319475763,1710799903943,-500.0,0.00023013,2]
[319475764,1710799903955,-500.0,0.00023013,2]
[319475765,1710799903966,-500.0,0.00023013,2]
[319475766,1710799903979,-500.0,0.00023013,2]
[319475767,1710799903990,-899.67,0.00023013,2]
[319475768,1710799904002,-500.0,0.00023013,2]
[319475769,1710799904014,-500.0,0.00023013,2]
[319475770,1710799904025,-1197.99,0.00023013,2]
[319475771,1710799904038,-2570.57,0.00023013,2]
[319475772,1710799904049,-832.49,0.00023013,2]
[319475773,1710799904062,-500.0,0.00023013,2]
[319475774,1710799904074,-500.0,0.00023013,2]
[319475775,1710799904087,-500.0,0.00023013,2]
[319475776,1710799904100,-500.0,0.00023013,2]
[319475777,1710799904113,-2336.68,0.00023013,2]
[319475778,1710799904125,-714.57,0.00023013,2]
[319475779,1710799904143,-500.0,0.00023013,2]
[319475780,1710799904156,-572.14,0.00023013,2]
[319475781,1710799904168,-500.0,0.00023013,2]
[319475782,1710799904182,-570.84,0.00023013,2]
[319475783,1710799904194,-500.0,0.00023013,2]
[319475784,1710799904205,-1267.22,0.00023013,2]
[319475785,1710799904217,-500.0,0.00023013,2]
[319475786,1710799904229,-713.53,0.00023013,2]
[319475787,1710799904240,-1986.27,0.00023013,2]
[319475788,1710799904252,-500.0,0.00023013,2]
[319475789,1710799904263,-500.0,0.00023013,2]
[319475790,1710799904275,-500.0,0.00023013,2]
[319475791,1710799904287,-500.0,0.00023013,2]
[319475792,1710799904298,-1031.5,0.00023013,2]
[319475793,1710799904309,-500.0,0.00023013,2]
[319475794,1710799904321,-500.0,0.00023013,2]
[319475795,1710799904333,-366.67585624,0.00023013,2]
[319475796,1710799904344,-1487.73,0.00023013,2]
[319475797,1710799904356,-500.0,0.00023013,2]
[319475798,1710799904367,-1462.06,0.00023013,2]
[319475799,1710799904380,-500.0,0.00023013,2]
[319475800,1710799904394,-2831.64,0.00023013,2]
[319475801,1710799904405,-500.0,0.00023013,2]
[319475802,1710799904417,-662.67,0.00023013,2]
[319475803,1710799904428,-1113.91,0.00023013,2]